Cogmind - Beta 15 @@@ ROGUE MODE // 2025.10.15 @ 21:53:09 Player: NQH Result: Destroyed by S-43 Plague with Heavy Machine Gun Performance ------------- Evolutions (7) 3500 Regions Visited (14) 2800 Robots Destroyed (126) 630 Value Destroyed (4371) 4371 Prototype IDs (3) 60 Alien Tech Used (0) 0 Bonus (991) 991 TOTAL SCORE: 12352 Bonus ------- High Alert Combat Kills 40 Follower Combat Kills 229 Entered Garrisons 400 Used RIF Installer 500 Friendly Fire -178 Cogmind --------- Core Integrity 0/1300 Matter 40/300 Energy 100/100 System Corruption 3% Temperature Cool (0) Movement Core (50) Location -3/Research Parts ------- > --- POWER (2) -------- (None) > --- PROPULSION (7) --- (None) > --- UTILITY (8) ------ Graphene Brace > --- WEAPON (4) ------- (None) > --- INVENTORY (5) ---- Light Particle Reactor Advanced Targeting Computer Improved Force Field Improved Remote Datajack Improved Plasma Cutter Peak State ------------ > --- POWER ------------ Micro Nuclear Core Antimatter Reactor > --- PROPULSION ------- Improved Linear Gravjet Improved Linear Gravjet Improved Linear Gravjet Improved Linear Gravjet Improved Linear Gravjet > --- UTILITY ---------- Improved Sensor Array Improved Signal Interpreter Improved Melee Analysis Suite Improved Target Analyzer Improved Force Booster Improved Force Booster Improved Force Booster Improved Force Booster > --- WEAPON ----------- Improved Datajack Power Maul Power Maul > --- INVENTORY -------- Armored Wheel Armored Wheel Centrium Wheel Improved Linear Gravjet Remote Datajack [Rating: 102] Favorites ----------- Power Micro Nuclear Core Engine Improved Ion Engine Power Core Micro Nuclear Core Reactor Antimatter Reactor Propulsion Improved Linear Gravjet Treads Light Treads Leg Carbon-fiber Leg Wheel Armored Wheel Hover Unit Improved Linear Gravjet Flight Unit Field Propulsion Array Utility Improved Melee Analysis Suite Device Improved Sensor Array Storage Small Storage Unit Processor Improved Melee Analysis Suite Hackware System Shield Protection Improved Medium Armor Plating Weapon Powered Hammer Energy Cannon Cooled Particle Cannon Ballistic Gun Light Assault Rifle Ballistic Cannon Light Cannon Special Weapon Remote Datajack Impact Weapon Powered Hammer Slashing Weapon Axe Special Melee Weapon Improved Datajack Build | -11 -10 -9 -8 -7 -7 -7 -7 -7 -6 -5 -4 -3 -3 -3 ------- Run | Yrd Mat Mat Mat Fac Gar Fac Low Low Fac Fac Fac Res Gar Res Slots Evolved 14 | . . 2 2 2 . . . . 2 2 2 2 . . Power 1 | . . . . . . . . . . 1 . . . . Propulsion 5 | . . . . 2 . . . . . 1 . 2 . . Utility 6 | . . 2 . . . . . . 2 . 2 . . . Weapon 2 | . . . 2 . . . . . . . . . . . Parts Attached 162 | 5 12 19 15 2 10 12 2 . 36 5 27 14 . 3 Power 20 | 1 1 3 2 . 4 . 1 . 5 . 2 1 . . Engine 8 | 1 . 3 2 . . . . . 2 . . . . . Core 10 | . 1 . . . 3 . 1 . 3 . 1 1 . . Reactor 2 | . . . . . 1 . . . . . 1 . . . Propulsion 52 | 2 6 2 6 1 2 1 . . 14 2 10 4 . 2 Treads 3 | . . . 1 . . . . . . . . 2 . . Leg 3 | . . . 1 . . . . . 2 . . . . . Wheel 28 | 2 4 2 3 1 2 1 . . 10 2 1 . . . Hover 15 | . . . 1 . . . . . 2 . 9 1 . 2 Flight 3 | . 2 . . . . . . . . . . 1 . . Utility 65 | 1 2 11 4 1 3 5 1 . 14 2 11 9 . 1 Device 27 | . . 2 1 . 2 3 . . 2 1 10 5 . 1 Storage 3 | 1 . 1 . 1 . . . . . . . . . . Processor 16 | . 2 1 2 . 1 1 1 . 5 . 1 2 . . Hackware 4 | . . . . . . . . . 2 1 . 1 . . Protection 15 | . . 7 1 . . 1 . . 5 . . 1 . . Artifact . | . . . . . . . . . . . . . . . Weapon 25 | 1 3 3 3 . 1 6 . . 3 1 4 . . . Energy Gun . | . . . . . . . . . . . . . . . Energy Cannon 1 | . . . . . . 1 . . . . . . . . Ballistic Gun 4 | 1 1 . . . 1 1 . . . . . . . . Ballistic Cannon 1 | . 1 . . . . . . . . . . . . . Launcher . | . . . . . . . . . . . . . . . Special Weapon 1 | . . . . . . . . . 1 . . . . . Impact Weapon 12 | . 1 3 1 . . 4 . . . . 3 . . . Slashing Weapon 4 | . . . 2 . . . . . 2 . . . . . Piercing Weapon . | . . . . . . . . . . . . . . . Special Melee Weapon 2 | . . . . . . . . . . 1 1 . . . Unidentified Prototypes 3 | . . . 1 . . 1 . . . . . 1 . . Corrupted Parts 6 | . . . 1 . 2 . . . 1 . 2 . . . System Corruption 27 | . . . 9 . 13 . . . 3 . 2 . . . Parts Lost 90 | . 1 7 9 . 16 . 1 . 24 4 23 3 . 2 Power 15 | . . 2 2 . 3 . 1 . 4 . 3 . . . Propulsion 32 | . 1 3 3 . 4 . . . 8 1 9 1 . 2 Utility 27 | . . 2 2 . 5 . . . 7 2 8 1 . . Weapon 16 | . . . 2 . 4 . . . 5 1 3 1 . . Highest Loss Streak 15 | . 1 2 8 . 6 . 1 . 10 4 15 2 . 1 To Critical Strikes 1 | . . . . . 1 . . . . . . . . . Average Backups 4 | . 4 7 7 5 8 4 3 5 4 2 4 3 3 4 Power . | . 1 1 . . 2 1 . 1 . . . . 1 1 Propulsion . | . 1 1 . 1 . . . . . . 2 . . . Utility 2 | . . 2 5 4 5 3 3 3 2 . . . . 1 Weapon . | . 1 2 . . . . . . . . . . . . Tool/Special . | . . . . . . . . . . . . . . . Unused Backups 14 | 2 . 1 . . 3 . . . 2 . 1 . . 5 Power 3 | . . 1 . . 1 . . . . . . . . 1 Propulsion 1 | . . . . . . . . . . . 1 . . . Utility 6 | . . . . . 2 . . . 2 . . . . 2 Weapon 2 | 2 . . . . . . . . . . . . . . Tool/Special 2 | . . . . . . . . . . . . . . 2 Average Slot Usage (%) 70 | . 91 89 78 76 55 48 75 76 78 71 78 27 1 8 Engine 1 | . 8 6 7 7 1 . . . . . . . . . Core 4 | . 5 4 . . 2 4 6 7 4 5 5 . . . Wheel 9 | . 25 21 10 15 12 3 6 7 10 10 . 2 . . Hover 6 | . . . . . . . . . . 10 23 . . 5 Device 7 | . . 2 1 7 4 10 12 7 7 4 13 10 1 2 Storage 2 | . 14 11 9 7 6 . . . . . . . . . Processor 14 | . 12 11 9 15 12 13 9 15 19 22 15 7 . . Hackware 1 | . . . . . . . . . 1 5 . . . . Protection 3 | . . 10 8 . . . 7 7 8 . . 1 . . Impact Weapon 11 | . 2 21 9 7 5 14 30 30 16 . 11 2 . . Slashing Weapon 2 | . . . 17 15 6 . . . 5 4 . . . . Peak Build Rating 102 | 5 11 18 27 34 41 36 38 38 49 43 102 62 6 33 Average Rating 37 | 3 7 14 19 34 26 23 36 38 39 39 78 26 3 24 On Entrance 19 | . 5 11 16 27 34 4 36 38 38 34 24 22 2 2 Naked Turns 147 | . . . . . 74 . . . . . . 15 49 9 Heaviest Build 62 | 12 15 24 27 55 60 25 26 26 29 11 62 16 4 1 Greatest Support 60 | 26 32 32 32 56 56 21 21 12 60 24 52 20 3 36 Greatest Overweight (x) 7 | . 4 1 7 . 3 1 2 2 3 . 2 1 1 . Average Overweight (x) . | . . . . . . . 1 2 . . . . . . Largest Inventory Capacity 20 | 8 8 8 8 20 20 5 5 5 5 5 5 5 5 5 Average Capacity 7 | 6 8 8 8 18 18 5 5 5 5 5 5 5 5 5 Most Carried 12 | 2 8 8 8 7 12 5 5 5 5 4 5 5 4 5 Average Carried 5 | . 4 7 7 6 8 4 3 5 4 2 4 4 3 4 Final Capacity 20 | 8 8 8 8 20 5 5 5 5 5 5 5 5 5 5 Final Carried 8 | 1 8 7 8 6 4 4 5 5 4 1 3 4 3 5 Class Distribution -------------------- 33% | Mutant 30% | Gladiator 9% | Sprinter 8% | Scavenger-Mutant 5% | Scavenger-Scout 3% | Scavenger-Gladiator 3% | Scout 3% | Assassin Dominant Class ---------------- Mutant | -10/Materials Mutant | -9/Materials Gladiator | -8/Materials Gladiator | -7/Factory Mutant | -7/Garrison Mutant | -7/Factory Mutant | -7/Lower Caves Gladiator | -7/Lower Caves Gladiator | -6/Factory Scavenger-Scout | -5/Factory Sprinter | -4/Factory Mutant | -3/Research Mutant | -3/Garrison Mutant | -3/Research Resources | -11 -10 -9 -8 -7 -7 -7 -7 -7 -6 -5 -4 -3 -3 -3 ----------- Run | Yrd Mat Mat Mat Fac Gar Fac Low Low Fac Fac Fac Res Gar Res Matter Collected 2130 | 176 302 287 90 . 165 . 265 . 412 . 433 . . . Remotely . | . . . . . . . . . . . . . . . Salvage Created 4847 | . 410 1198 614 . 510 . 87 . 1506 . 522 . . . Parts 178 | . 19 31 31 . 15 . 1 . 60 . 21 . . . Haulers Intercepted 1 | . 1 . . . . . . . . . . . . . Recyclers Shooed 2 | . . 2 . . . . . . . . . . . . Parts Field Recycled . | . . . . . . . . . . . . . . . Retrieved Matter . | . . . . . . . . . . . . . . . Parts Self-Destructed 1 | . . . . . . . 1 . . . . . . . Prevented . | . . . . . . . . . . . . . . . Kills | -11 -10 -9 -8 -7 -7 -7 -7 -7 -6 -5 -4 -3 -3 -3 ------- Run | Yrd Mat Mat Mat Fac Gar Fac Low Low Fac Fac Fac Res Gar Res Combat Hostiles Destroyed 84 | . 6 25 8 . 12 . 4 . 17 . 12 . . . Melee 47 | . . 12 7 . 12 . 3 . 7 . 6 . . . Cannons 6 | . 6 . . . . . . . . . . . . . AOE 10 | . . . . . . . . . 6 . 4 . . . Classes Destroyed 14 | . 5 5 . . 1 . . . 3 . . . . . Worker 13 | . . 3 2 . . . . . 8 . . . . . Builder 7 | . . 2 . . . . . . 5 . . . . . Hauler 1 | . 1 . . . . . . . . . . . . . Recycler 12 | . 3 3 2 . . . . . 4 . . . . . Operator 3 | . . . . . . . . . 3 . . . . . Watcher 5 | . 2 1 . . . . . . 1 . 1 . . . Swarmer 26 | . 3 4 . . 9 . 4 . 2 . 4 . . . Grunt 37 | . 3 14 5 . 3 . . . 10 . 2 . . . Brawler 1 | . . 1 . . . . . . . . . . . . Duelist 2 | . . 2 . . . . . . . . . . . . Sentry 9 | . . 4 3 . . . . . 1 . 1 . . . Hunter 2 | . . . . . . . . . 1 . 1 . . . Programmer 7 | . . . . . . . . . 3 . 4 . . . Infiltrator 1 | . . . . . 1 . . . . . . . . . Best Kill Streak 9 | . 5 9 6 . 7 . 4 . 5 . 4 . . . Combat Bots Only 7 | . 3 6 3 . 7 . 4 . 4 . 4 . . . Max Kills in Single Turn 5 | . 1 1 1 . 1 . 2 . 5 . 3 . . . Gunslinging . | . . . . . . . . . . . . . . . Exploded 4 | . . . . . . . . . 4 . 3 . . . Melee 2 | . . 1 1 . 1 . 2 . 1 . 1 . . . Uniques/NPCs Destroyed . | . . . . . . . . . . . . . . . Combat | -11 -10 -9 -8 -7 -7 -7 -7 -7 -6 -5 -4 -3 -3 -3 -------- Run | Yrd Mat Mat Mat Fac Gar Fac Low Low Fac Fac Fac Res Gar Res Hostile Shots Fired 1106 | . 48 156 75 . 173 . 19 . 277 3 152 136 26 41 Missed 372 | . 17 37 18 . 35 . 1 . 116 1 59 59 11 18 Hits 734 | . 31 119 57 . 138 . 18 . 161 2 93 77 15 23 Melee 14 | . . 5 . . 9 . . . . . . . . . Projectile 720 | . 31 114 57 . 129 . 18 . 161 2 93 77 15 23 AOE 2 | . . . . . . . . . . . 1 1 . . Critical Strikes 24 | . . 2 2 . 2 . . . 4 . 8 6 . . Actively Blocked 7 | . . . 1 . . . . . 1 . . 5 . . Part Disruptions 1 | . . . . . . . . . . . 1 . . . Damage Taken 13454 | . 328 1430 904 . 2333 1 272 . 3265 310 2389 1303 251 668 Core 4139 | . 77 311 283 . 621 1 46 . 684 47 746 724 251 348 Absorbed by Shields 215 | . . 63 . . 10 . . . . . . 124 18 . Redirected to Shielding 183 | . . 34 73 . 28 . . . 48 . . . . . Ignored by Resistances 24 | . . . . . . . . . 24 . . . . . Core Remaining (%) 49 | 100 69 22 48 . . . . 4 19 95 35 . . . Volleys Fired 47 | . 24 . . . 10 . . . 13 . . . . . Largest 2 | . 2 . . . 1 . . . 1 . . . . . Hottest 50 | . 50 . . . 23 . . . 5 . . . . . Shots Fired 68 | . 45 . . . 10 . . . 13 . . . . . Gun 31 | . 21 . . . 10 . . . . . . . . . Cannon 24 | . 24 . . . . . . . . . . . . . Launcher . | . . . . . . . . . . . . . . . Special 13 | . . . . . . . . . 13 . . . . . Kinetic 55 | . 45 . . . 10 . . . . . . . . . Thermal . | . . . . . . . . . . . . . . . Explosive . | . . . . . . . . . . . . . . . Electromagnetic . | . . . . . . . . . . . . . . . Robot Hit Streak 9 | . 6 . . . 5 . . . 9 . . . . . Robot Miss Streak 3 | . 3 . . . 2 . . . 1 . . . . . Penetration Max . | . . . . . . . . . . . . . . . Secondary Targets . | . . . . . . . . . . . . . . . Shots Hit Robots 303 | . 35 79 29 . 44 . 7 . 79 6 24 . . . Core Hits 81 | . 13 11 10 . 13 . 1 . 24 . 9 . . . Critical Kills 6 | . . 2 . . . . 1 . 2 . 1 . . . Critical Parts Destroyed 30 | . . 11 . . 5 . 2 . 7 . 5 . . . Critical Strikes 46 | . 1 14 6 . 6 . 3 . 10 . 6 . . . Blast 1 | . 1 . . . . . . . . . . . . . Smash 38 | . . 14 . . 6 . 3 . 9 . 6 . . . Sever 7 | . . . 6 . . . . . 1 . . . . . Melee Attacks 449 | . 6 102 36 . 71 . 16 . 128 13 65 12 . . Impact 352 | . 6 102 3 . 59 . 16 . 91 . 63 12 . . Slashing 89 | . . . 33 . 12 . . . 37 7 . . . . Piercing . | . . . . . . . . . . . . . . . Sneak Attacks 52 | . 2 12 4 . . . 2 . 22 6 4 . . . Combat Hostiles 5 | . . 1 . . . . 2 . 1 . 1 . . . Follow-up Attacks 49 | . . 16 3 . 7 . 3 . 16 . 4 . . . Damage Inflicted 14436 | . 623 3085 1121 . 1852 2 443 . 5164 . 2064 9 . 73 Guns 213 | . 134 . . . 79 . . . . . . . . . Cannons 304 | . 304 . . . . . . . . . . . . . Explosions 2464 | . . . . . 78 . . . 1533 . 853 . . . Melee 11362 | . 185 3085 1121 . 1686 . 443 . 3631 . 1211 . . . Ramming 93 | . . . . . 9 2 . . . . . 9 . 73 Kinetic 517 | . 438 . . . 79 . . . . . . . . . Thermal 1659 | . . . . . . . . . 806 . 853 . . . Explosive 805 | . . . . . 78 . . . 727 . . . . . Electromagnetic . | . . . . . . . . . . . . . . . Impact 9119 | . 185 3085 98 . 1488 . 443 . 2609 . 1211 . . . Slashing 2243 | . . . 1023 . 198 . . . 1022 . . . . . Piercing . | . . . . . . . . . . . . . . . Highest Corruption 30 | . . . 9 . 30 30 30 30 14 4 9 2 2 3 Average Corruption 11 | . . . 9 . 10 30 30 30 7 4 4 1 2 2 Corruption Purged . | . . . . . . . . . . . . . . . Corruption Blocked . | . . . . . . . . . . . . . . . Effects 121 | . . . 6 . 12 11 19 12 23 1 31 . 2 4 Message Errors 22 | . . . 2 . 2 2 2 2 5 1 5 . . 1 Matter Fused 27 | . . . . . 1 3 7 4 4 . 8 . . . Heat Flow Errors 16 | . . . 2 . 4 1 1 2 4 . 1 . . 1 Energy Discharges 22 | . . . 1 . 1 1 3 3 4 . 7 . 1 1 Parts Rejected 3 | . . . . . . . 1 . 1 . . . 1 . Data Loss (minor) 17 | . . . 1 . . 1 3 . 3 . 8 . . 1 Data Loss (major) 7 | . . . . . . 2 2 1 . . 2 . . . Alerts 2 | . . . . . . 1 . . 1 . . . . . Misdirections 5 | . . . . . 4 . . . 1 . . . . . Overload Shots . | . . . . . . . . . . . . . . . Overflow Damage 3694 | . 20 946 83 . 294 . 228 . 1511 . 612 . . . Projectiles 10 | . 10 . . . . . . . . . . . . . Explosions 651 | . . . . . . . . . 330 . 321 . . . Melee 3033 | . 10 946 83 . 294 . 228 . 1181 . 291 . . . Knockbacks 40 | . 4 15 1 . 8 . . . 8 . 4 . . . Impact 36 | . . 15 1 . 8 . . . 8 . 4 . . . Kinetic 4 | . 4 . . . . . . . . . . . . . Secondary . | . . . . . . . . . . . . . . . Self-Inflicted Damage 1573 | . . . . . 158 1 . . 920 . 456 4 . 34 Shots 16 | . . . . . 1 . . . 10 . 5 . . . Rammed 20 | . . . . . 3 2 . . . . . 2 . 13 Targets Rammed 20 | . . . . . 3 2 . . . . . 2 . 13 Kicked . | . . . . . . . . . . . . . . . Crushed . | . . . . . . . . . . . . . . . Highest Temperature 332 | . 67 1 273 . 258 256 200 261 203 . 332 . . 144 Average Temperature 72 | . 26 1 114 . 105 134 108 113 74 . 64 . . 83 Received Heat Transfer 2392 | . 96 493 441 . 384 . . . 660 9 150 141 18 . Siege Activations . | . . . . . . . . . . . . . . . Martial Activations . | . . . . . . . . . . . . . . . Shielding Activations . | . . . . . . . . . . . . . . . Robots Disrupted . | . . . . . . . . . . . . . . . Combat Hostiles . | . . . . . . . . . . . . . . . Robots Corrupted 34 | . 1 19 1 . 2 . 1 . 7 . 3 . . . Combat Hostiles 22 | . . 13 1 . 1 . 1 . 4 . 2 . . . Parts Fried 48 | . 1 26 . . . . 1 . 18 . 2 . . . Impact Corruptions 96 | . 1 39 1 . 11 . 3 . 31 . 10 . . . Robots Melted . | . . . . . . . . . . . . . . . Combat Hostiles . | . . . . . . . . . . . . . . . Parts Melted 1 | . . . . . . . . . . . 1 . . . Heat Transferred 1100 | . . . . . . . . . 500 . 600 . . . Parts Sabotaged . | . . . . . . . . . . . . . . . Parts Stolen . | . . . . . . . . . . . . . . . Parts Stripped . | . . . . . . . . . . . . . . . Power Chain Reactions . | . . . . . . . . . . . . . . . Alert | -11 -10 -9 -8 -7 -7 -7 -7 -7 -6 -5 -4 -3 -3 -3 ------- Run | Yrd Mat Mat Mat Fac Gar Fac Low Low Fac Fac Fac Res Gar Res Maximum Alert Level 2 | . . 1 . . 2 1 . . 2 1 1 . . . Low Security (%) 76 | 100 100 66 100 100 36 37 . . 60 84 95 100 100 100 Level 1 19 | . . 33 . . 33 62 . . 34 15 4 . . . Level 2 4 | . . . . . 30 . . . 5 . . . . . Level 3 . | . . . . . . . . . . . . . . . Level 4 . | . . . . . . . . . . . . . . . Level 5 . | . . . . . . . . . . . . . . . High Security . | . . . . . . . . . . . . . . . Max Security . | . . . . . . . . . . . . . . . Peak Influence 566 | . 55 328 137 48 539 283 . . 566 275 272 138 34 18 Initial 283 | . . 10 137 44 33 283 . . . 275 . 134 34 18 Average 110 | . 27 136 104 36 278 219 . . 154 89 21 45 34 3 Influence Increases 3839 | . 176 681 220 24 687 6 90 . 1162 68 589 136 . . Destroy 0b10 Robot/C 1840 | . 120 500 160 . 320 . 80 . 420 . 240 . . . Destroy 0b10 Robot/NC 215 | . 30 45 20 . 10 . . . 105 . 5 . . . Destroy Leader 342 | . 26 102 40 . 30 . 10 . 92 . 42 . . . Allied During Kill 21 | . . . . . 15 . . . 6 . . . . . Trap Triggered on 0b10 10 | . . . . . . . . . . . 10 . . . Successful Hack 112 | . . 4 . 24 30 6 . . 12 24 12 . . . Disable Machine 390 | . . . . . . . . . 270 . 120 . . . Anti-Garrison Action 100 | . . . . . 100 . . . . . . . . . Destroy Structure 374 | . . . . . 92 . . . 122 14 130 16 . . Partial Spotted 15 | . . . . . . . . . . . 15 . . . Lose Combat Pursuer 420 | . . 30 . . 90 . . . 135 30 15 120 . . Influence Decreases 3839 | . 150 380 450 73 195 397 239 . 599 631 333 346 12 34 Entered New Map 1025 | . . 16 190 53 15 257 56 . . 288 . 122 12 16 Time Decay 1987 | . 140 304 170 20 . 140 173 . 344 341 153 184 . 18 Lost Part 777 | . 10 60 90 . 160 . 10 . 235 2 180 30 . . Lost Ally 50 | . . . . . 20 . . . 20 . . 10 . . Squads Dispatched 23 | . . 1 . 1 . 2 . . 7 3 5 3 . 1 Investigation 8 | . . 1 . 1 . 1 . . 1 2 1 1 . . Extermination 10 | . . . . . . 1 . . 3 1 4 1 . . Reinforcement 5 | . . . . . . . . . 3 . . 1 . 1 Assault . | . . . . . . . . . . . . . . . Garrison . | . . . . . . . . . . . . . . . Intercept . | . . . . . . . . . . . . . . . Searches Triggered . | . . . . . . . . . . . . . . . Construction Impeded . | . . . . . . . . . . . . . . . Haulers Reinforced . | . . . . . . . . . . . . . . . Active Scanning Responses . | . . . . . . . . . . . . . . . Cargo Convoy Interrupts . | . . . . . . . . . . . . . . . Stealth | -11 -10 -9 -8 -7 -7 -7 -7 -7 -6 -5 -4 -3 -3 -3 --------- Run | Yrd Mat Mat Mat Fac Gar Fac Low Low Fac Fac Fac Res Gar Res Distress Signals 4 | . 1 1 . . . . . . . . . 1 . 1 Communications Jammed 1 | . . . . . . . . . 1 . . . . . Distress Signals 1 | . . . . . . . . . 1 . . . . . Times Spotted 182 | . 8 31 9 . 21 1 2 . 38 4 17 34 3 14 Peak Tracking Total 25 | . 3 6 4 . 8 1 2 . 6 3 8 25 5 10 Tactical Retreats 18 | . . 2 . . 3 . . . 7 1 1 4 . . Traps | -11 -10 -9 -8 -7 -7 -7 -7 -7 -6 -5 -4 -3 -3 -3 ------- Run | Yrd Mat Mat Mat Fac Gar Fac Low Low Fac Fac Fac Res Gar Res Traps Triggered 10 | . . 1 . . 4 . . . 1 . 1 2 1 . Indirectly . | . . . . . . . . . . . . . . . Trap Hack Attempts 7 | . . . . . . . . . . . 7 . . . Triggered . | . . . . . . . . . . . . . . . Disarmed . | . . . . . . . . . . . . . . . Reprogrammed 1 | . . . . . . . . . . . 1 . . . Reused 1 | . . . . . . . . . . . 1 . . . Traps Extracted . | . . . . . . . . . . . . . . . Installed . | . . . . . . . . . . . . . . . Triggered 1 | . . . . . . . . . . . 1 . . . Machines | -11 -10 -9 -8 -7 -7 -7 -7 -7 -6 -5 -4 -3 -3 -3 ---------- Run | Yrd Mat Mat Mat Fac Gar Fac Low Low Fac Fac Fac Res Gar Res Machines Disabled 29 | . . . . . 3 . . . 18 . 8 . . . Max in Single Turn 5 | . . . . . 2 . . . 5 . 4 . . . Garrison Relay 1 | . . . . . 1 . . . . . . . . . Phase Generator 1 | . . . . . 1 . . . . . . . . . Machines Repaired . | . . . . . . . . . . . . . . . Machines Dismantled . | . . . . . . . . . . . . . . . Machines Sabotaged . | . . . . . . . . . . . . . . . Overloaded Fab Kills . | . . . . . . . . . . . . . . . Hacking | -11 -10 -9 -8 -7 -7 -7 -7 -7 -6 -5 -4 -3 -3 -3 --------- Run | Yrd Mat Mat Mat Fac Gar Fac Low Low Fac Fac Fac Res Gar Res Machines Accessed 13 | . . 2 . 1 2 2 . 1 1 2 1 1 . . Terminals 4 | . . . . . 2 2 . . . . . . . . Fabricators 1 | . . . . . . . . . . 1 . . . . Repair Stations 1 | . . . . . . . . . . 1 . . . . Recycling Units . | . . . . . . . . . . . . . . . Scanalyzers 4 | . . 2 . . . . . . 1 . 1 . . . Garrison Access 2 | . . . . 1 . . . . . . . 1 . . Total Hacks 41 | . . 12 . 3 3 5 . 4 5 5 3 1 . . Successful 26 | . . 11 . 1 2 1 . 4 2 3 1 1 . . Failed 15 | . . 1 . 2 1 4 . . 3 2 2 . . . Catastrophic 4 | . . . . 1 . 1 . . . 1 1 . . . Database Lockouts . | . . . . . . . . . . . . . . . Manual 3 | . . . . . . 3 . . . . . . . . Terminals 8 | . . . . . 3 5 . . . . . . . . Fabricators 2 | . . . . . . . . . . 2 . . . . Repair Stations 3 | . . . . . . . . . . 3 . . . . Recycling Units . | . . . . . . . . . . . . . . . Scanalyzers 20 | . . 12 . . . . . . 5 . 3 . . . Garrison Access 4 | . . . . 3 . . . . . . . 1 . . Terminal Hacks 7 | . . . . . 2 1 . 4 . . . . . . Record 4 | . . . . . . . . 4 . . . . . . Open DSF 1 | . . . . . . 1 . . . . . . . . Emergency Access Points 1 | . . . . . 1 . . . . . . . . . Garrison Registry 1 | . . . . . 1 . . . . . . . . . Fabricator Hacks 2 | . . . . . . . . . . 2 . . . . Load Schematic 1 | . . . . . . . . . . 1 . . . . Build 1 | . . . . . . . . . . 1 . . . . Repair Station Hacks 1 | . . . . . . . . . . 1 . . . . Scan Component 1 | . . . . . . . . . . 1 . . . . Recycling Unit Hacks . | . . . . . . . . . . . . . . . Scanalyzer 14 | . . 11 . . . . . . 2 . 1 . . . Insert Component 8 | . . 6 . . . . . . 1 . 1 . . . Analyze 6 | . . 5 . . . . . . 1 . . . . . Garrison Access Hacks 2 | . . . . 1 . . . . . . . 1 . . Unlock Access 2 | . . . . 1 . . . . . . . 1 . . Unauthorized Hacks . | . . . . . . . . . . . . . . . Terminals . | . . . . . . . . . . . . . . . Fabricators . | . . . . . . . . . . . . . . . Repair Stations . | . . . . . . . . . . . . . . . Recycling Units . | . . . . . . . . . . . . . . . Scanalyzers . | . . . . . . . . . . . . . . . Garrison Access . | . . . . . . . . . . . . . . . Data Cores Recovered . | . . . . . . . . . . . . . . . Used . | . . . . . . . . . . . . . . . Hacking Detections 9 | . . 2 . 1 1 1 . . 1 2 1 . . . Full Trace Events 7 | . . 1 . 1 . 1 . . 1 2 1 . . . Feedback Events 1 | . . . . . . . . . . . 1 . . . Corruption 1 | . . . . . . . . . . . 1 . . . Feedback Blocked . | . . . . . . . . . . . . . . . Robot Schematics Acquired . | . . . . . . . . . . . . . . . Robots Built . | . . . . . . . . . . . . . . . Authchips . | . . . . . . . . . . . . . . . Time . | . . . . . . . . . . . . . . . Total Robot Build Rating . | . . . . . . . . . . . . . . . Part Schematics Acquired 6 | . . 5 . . . . . . 1 . . . . . Parts Built 2 | . . . . . . . . . . 2 . . . . Authchips . | . . . . . . . . . . . . . . . Time 31 | . . . . . . . . . . 31 . . . . Total Part Build Rating 4 | . . . . . . . . . . 4 . . . . Parts Repaired . | . . . . . . . . . . . . . . . Time . | . . . . . . . . . . . . . . . Parts Recycled . | . . . . . . . . . . . . . . . Recycled Matter . | . . . . . . . . . . . . . . . Retrieved Matter . | . . . . . . . . . . . . . . . Retrieved Components . | . . . . . . . . . . . . . . . Parts Scanalyzed 7 | . . 5 . . . . . . 1 . 1 . . . Part Schematics Acquired 6 | . . 5 . . . . . . 1 . . . . . Parts Damaged 2 | . . 1 . . . . . . . . 1 . . . Bothacking | -11 -10 -9 -8 -7 -7 -7 -7 -7 -6 -5 -4 -3 -3 -3 ------------ Run | Yrd Mat Mat Mat Fac Gar Fac Low Low Fac Fac Fac Res Gar Res Used RIF Installer 1 | . . . . . 1 . . . . . . . . . Robots Hacked 9 | . . . . . . . . . 3 4 2 . . . Non-combat 6 | . . . . . . . . . . 4 2 . . . Combat 3 | . . . . . . . . . 3 . . . . . Robot Hacks Applied 11 | . . . . . . . . . 4 5 2 . . . locate_stockpiles 1 | . . . . . . . . . . 1 . . . . link_fov 6 | . . . . . . . . . . 4 2 . . . spike_heat 3 | . . . . . . . . . 3 . . . . . formatsys_high 1 | . . . . . . . . . 1 . . . . . Relay Couplers Released 4 | . . . . . 4 . . . . . . . . . Machine Destruction 4 | . . . . . 4 . . . . . . . . . Attached 2 | . . . . . . . . . 1 1 . . . . Fabnet Peak Effective % . | . . . . . . . . . . . . . . . Robots Rewired . | . . . . . . . . . . . . . . . Allies Hacked . | . . . . . . . . . . . . . . . Hacks Repelled . | . . . . . . . . . . . . . . . Allies | -11 -10 -9 -8 -7 -7 -7 -7 -7 -6 -5 -4 -3 -3 -3 -------- Run | Yrd Mat Mat Mat Fac Gar Fac Low Low Fac Fac Fac Res Gar Res Total Allies 3 | . . . . . 2 . . . 1 . . . . . Largest Group 2 | . . . . . 2 . . . 1 . . . . . Highest-Rated Group 124 | . . . . . 124 . . . 41 . . . . . Highest-Rated Ally 62 | . . . . . 62 . . . 41 . . . . . Total Orders . | . . . . . . . . . . . . . . . Ally Attacks 20 | . . . . . 10 . . . 10 . . . . . Total Damage 799 | . . . . . 497 . . . 302 . . . . . Kills 8 | . . . . . 4 . . . 4 . . . . . Allies Corrupted . | . . . . . . . . . . . . . . . Allies Melted . | . . . . . . . . . . . . . . . Intel | -11 -10 -9 -8 -7 -7 -7 -7 -7 -6 -5 -4 -3 -3 -3 ------- Run | Yrd Mat Mat Mat Fac Gar Fac Low Low Fac Fac Fac Res Gar Res Active Infowar (turns) 7213 | . 65 1030 151 50 724 279 410 252 1392 1020 1405 435 . . Optics 5333 | . 65 1030 111 50 724 279 410 252 1392 1020 . . . . Sensors 2334 | . . . . . . . . . . 1020 1314 . . . Terrain 458 | . . . . . . . . . . . 23 435 . . Structural 540 | . . . 66 50 288 . . . 136 . . . . . Machine Analysis 68 | . . . . . . . . . . . 68 . . . Jamming 243 | . . . . . . 164 18 . 61 . . . . . Robot Analysis Total . | . . . . . . . . . . . . . . . Derelict Logs Recovered 1 | . . . . . . . 1 . . . . . . . Drone Launches 4 | . . . . . . . . . . . . 4 . . Drone Recoveries 3 | . . . . . . . . . . . . 3 . . Exploration | -11 -10 -9 -8 -7 -7 -7 -7 -7 -6 -5 -4 -3 -3 -3 ------------- Run | Yrd Mat Mat Mat Fac Gar Fac Low Low Fac Fac Fac Res Gar Res Turns Passed 8430 | 59 338 1030 359 50 835 287 410 252 1405 1050 1570 540 82 163 Spaces Moved 5810 | 54 218 575 219 47 597 366 310 210 817 252 1196 562 97 290 Core 737 | 2 1 . 1 . 152 226 2 . 121 . 31 86 97 18 Treads 10 | . . . 10 . . . . . . . . . . . Legs 71 | . . . 28 . . . . . 43 . . . . . Wheels 3153 | 52 208 575 168 47 445 140 308 210 565 103 62 270 . . Hover 1708 | . . . 12 . . . . . 88 149 1103 84 . 272 Flight 131 | . 9 . . . . . . . . . . 122 . . Fastest Speed 24 | 50 90 90 80 100 50 50 100 120 50 56 24 40 50 40 Average Speed 78 | 87 99 98 116 100 94 66 119 120 101 75 35 68 65 48 Slowest Speed 400 | 90 285 115 400 100 135 105 120 120 200 90 200 95 100 60 Overloaded Moves . | . . . . . . . . . . . . . . . Propulsion Burnouts . | . . . . . . . . . . . . . . . Robots Hopped 17 | . . . . . . . . . . . . 17 . . Potential Cave-ins . | . . . . . . . . . . . . . . . Cave-ins Triggered 2 | . . . . . . . . . 1 1 . . . . Exploration Rate (%) 23 | 3 27 40 22 3 75 11 58 23 18 5 17 18 23 13 Regions Visited 14 Branch Regions 2 Pre-discovered Areas . | . . . . . . . . . . . . . . . Known Exits Taken 5 | . . . . 1 . . . . 1 1 1 1 . . Unknown Exits Taken 7 | 1 1 1 1 . . 1 1 1 . . . . . . Scrap Searched 2 | . . . . . . . 2 . . . . . . . Spaces Dug 50 | . . . . . 1 . . . 12 7 22 8 . . Terrain Destroyed 320 | . . . . . 74 . . . 164 7 67 8 . . Melee 50 | . . . . . 1 . . . 12 7 22 8 . . Projectile . | . . . . . . . . . . . . . . . AOE 270 | . . . . . 73 . . . 152 . 45 . . . Terrain Rammed . | . . . . . . . . . . . . . . . Walls Destroyed . | . . . . . . . . . . . . . . . Machines Disabled . | . . . . . . . . . . . . . . . Actions | -11 -10 -9 -8 -7 -7 -7 -7 -7 -6 -5 -4 -3 -3 -3 --------- Run | Yrd Mat Mat Mat Fac Gar Fac Low Low Fac Fac Fac Res Gar Res Total 8930 | 64 284 886 275 49 749 404 328 210 1240 1101 2241 676 113 310 Wait 2334 | . 13 178 . . 30 18 1 1 245 827 935 84 1 1 Move 5765 | 53 217 574 218 46 595 365 309 209 816 251 1195 532 95 290 Hop 12 | . . . . . . . . . . . . 12 . . Pick Up 51 | 4 3 6 5 . 6 2 2 . 8 . 8 4 . 3 Fast Attach 127 | 4 8 11 9 . 5 11 2 . 31 2 25 16 1 2 Attach 44 | 1 1 6 5 1 6 2 1 . 3 4 7 5 1 1 Detach 26 | . 5 3 2 . 1 1 . . 2 3 5 4 . . Swap 32 | . 3 11 1 1 2 . . . 13 . 1 . . . Drop 64 | 2 4 15 6 1 . 3 1 . 18 1 8 5 . . Fire 47 | . 24 . . . 10 . . . 13 . . . . . Melee 353 | . 6 82 29 . 59 . 12 . 90 13 50 12 . . Ram 21 | . . . . . 4 2 . . . . . 2 . 13 Kick . | . . . . . . . . . . . . . . . Crush . | . . . . . . . . . . . . . . . Escape Stasis 46 | . . . . . 31 . . . . . . . 15 . Rewire 1 | . . . . . . . . . 1 . . . . . Trap 7 | . . . . . . . . . . . 7 . . . Miscellaneous . | . . . . . . . . . . . . . . . Route ------- -11/Scrapyard -10/Materials (discovered 2 exits: *Mat / [*Min]) -9/Materials (discovered 2 exits: [*Mat] / [*Min]) -8/Materials -7/Factory -7/Garrison (discovered 3 exits: *Fac x3) -7/Factory -7/Lower Caves -7/Lower Caves -6/Factory -5/Factory -4/Factory (discovered 2 exits: *Res / Arm) -3/Research -3/Garrison -3/Research History --------- Turn | Location | Event 6 | -11/Scrapyard | Discovered new exit (range 16) 60 | -11/Scrapyard | Entered Materials 206 | -10/Materials | Discovered new exit (range 8) 310 | -10/Materials | Discovered new exit (range 12) 398 | -10/Materials | Entered another Materials area 398 | -9/Materials | Evolved 2 slots: Utility x2 541 | -9/Materials | Build established: Scavenger-Mutant 959 | -9/Materials | Build established: Mutant 1051 | -9/Materials | Discovered new exit (range 16) 1190 | -9/Materials | Core integrity fell below 50% 1375 | -9/Materials | Discovered new exit (range 7) 1428 | -9/Materials | Entered another Materials area 1428 | -8/Materials | Evolved 2 slots: Weapon x2 1655 | -8/Materials | Lost 8 parts (1p3n2u2w) 1710 | -8/Materials | Core integrity fell below 50% 1785 | -8/Materials | Discovered new exit (range 3) 1787 | -8/Materials | Entered Factory 1787 | -7/Factory | Evolved 2 slots: Propulsion x2 1818 | -7/Factory | Build established: Gladiator 1836 | -7/Factory | Identified exit to Garrison 1837 | -7/Factory | Entered Garrison 1921 | -7/Garrison | Triggered checkpoint 2106 | -7/Garrison | Triggered checkpoint 2198 | -7/Garrison | Destroyed 7 combat bots 2203 | -7/Garrison | Lost 6 parts (1p2n1u2w) 2265 | -7/Garrison | Found embedded Infiltrators 2293 | -7/Garrison | Triggered checkpoint 2337 | -7/Garrison | Garrison Relay disabled 2444 | -7/Garrison | Phase Generator disabled 2444 | -7/Garrison | Discovered new exit (range 13) 2445 | -7/Garrison | Core integrity fell below 50% 2452 | -7/Garrison | Build established: Mutant 2517 | -7/Garrison | System corruption reached 10% 2555 | -7/Garrison | Lost 4 parts (1p2u1w) 2582 | -7/Garrison | Core integrity fell below 20% 2589 | -7/Garrison | System corruption reached 30% 2596 | -7/Garrison | Released all parts (3) 2623 | -7/Garrison | Discovered new exit (range 29) 2623 | -7/Garrison | Discovered new exit (range 15) 2623 | -7/Garrison | Discovered new exit (range 53) 2626 | -7/Garrison | Lost 5 parts (2n2u1w) 2662 | -7/Garrison | Installed Relay Interface Framework 2672 | -7/Garrison | Entered Factory 2942 | -7/Factory | Discovered new exit (range 14) 2959 | -7/Factory | Entered Lower Caves 3166 | -7/Lower Caves | Learned Factory terminal intel 3230 | -7/Lower Caves | Encountered a Warlord checkpoint 3353 | -7/Lower Caves | Discovered new exit (range 16) 3369 | -7/Lower Caves | Entered another Lower Caves area 3525 | -7/Lower Caves | Build established: Gladiator 3578 | -7/Lower Caves | Learned Extension emergency access door positions 3578 | -7/Lower Caves | Learned Armory terminal intel 3616 | -7/Lower Caves | Discovered new exit (range 5) 3621 | -7/Lower Caves | Entered Factory 3621 | -6/Factory | Evolved 2 slots: Utility x2 3622 | -6/Factory | Loaded intel: 28 terminal locations 4130 | -6/Factory | Lost 4 parts (1p2n1u) 4601 | -6/Factory | Lost 5 parts (1p2n2u) 4717 | -6/Factory | Crushed by falling debris 4717 | -6/Factory | System corruption reached 10% 4750 | -6/Factory | Core integrity fell below 50% 4780 | -6/Factory | Lost 10 parts (1p4n2u3w) 5015 | -6/Factory | Core integrity fell below 20% 5023 | -6/Factory | Discovered new exit (range 3) 5026 | -6/Factory | Identified exit to Factory 5026 | -6/Factory | Entered another Factory area 5026 | -5/Factory | Evolved 2 slots: Power x1, Propulsion x1 5067 | -5/Factory | Fabricated Arm. Wheel (x2) 5637 | -5/Factory | Discovered new exit (range 19) 5880 | -5/Factory | Build established: Scavenger-Scout 6046 | -5/Factory | Crushed by falling debris 6075 | -5/Factory | Identified exit to Factory 6076 | -5/Factory | Entered another Factory area 6076 | -4/Factory | Evolved 2 slots: Utility x2 6077 | -4/Factory | Identified exit to Armory 6105 | -4/Factory | Lost 4 parts (1n2u1w) 6399 | -4/Factory | Build established: Gladiator 6954 | -4/Factory | Build established: Sprinter 7441 | -4/Factory | Lost 7 parts (1p4n1u1w) 7607 | -4/Factory | Core integrity fell below 50% 7616 | -4/Factory | Discovered new exit (range 12) 7643 | -4/Factory | Identified exit to Research 7646 | -4/Factory | Entered Research 7646 | -3/Research | Evolved 2 slots: Propulsion x2 7648 | -3/Research | Lost 15 parts (2p5n6u2w) 7908 | -3/Research | Build established: Mutant 7994 | -3/Research | Released all parts (8) 8180 | -3/Research | Released all parts (5) 8184 | -3/Research | Core integrity fell below 50% 8185 | -3/Research | Identified exit to Garrison 8186 | -3/Research | Entered Garrison 8219 | -3/Garrison | Spotted B-86 Titan 8220 | -3/Garrison | Triggered checkpoint 8222 | -3/Garrison | Triggered checkpoint 8225 | -3/Garrison | Released all parts (1) 8255 | -3/Garrison | Discovered new exit (range 10) 8268 | -3/Garrison | Entered Research 8374 | -3/Research | Core integrity fell below 20% 8431 | -3/Research | Destroyed by S-43 Plague with Heavy Machine Gun Last Messages --------------- 08374_ Penetrated by Slug. 08375_ Slammed into H-77 Assassin. 08376_ Penetrated by Slug. 08376_ Imp. Linear Gravjet destroyed. 08376_ Penetrated by Slug. 08377_ Slammed into H-77 Assassin. 08378_ Slammed into K-01 Serf. 08378_ Destabilizing: Core damaged (-39). 08384_ Penetrated by Slug. 08389_ System corrupted: Energy discharge (-35). 08395_ Slug penetrates Wall. 08400_ Penetrated by Slug. 08400_ Slug penetrates U-05 Engineer. 08400_ U-05 Engineer destroyed. 08410_ 9L,BLA 08424_ Detecting nearby Garrison Access. 08426_ System corrupted: Component data lost. 08429_ Antigrav Array destroyed. 08430_ Slammed into S-43 Plague. [Achievement: 10k Club] Map ----- +----------------------------------------------------+ | ?????????????????????????????????????????? | | ?????????????????????????????????????????? | | ?????????????????????????????????????????? | | ?????????????????????????????????????????? | | ?????????????????????????????????????????? | | ?????????????????????????????????????????? | | ?????????????????????????????????????????? | | ?????????????????????????????????????????? | | ?????????????????????????????????????????? | | ?????????????????????????????????????????? | | ??????????????###########????????????????? | | ??????????????# """"" #????????????????? | | ??????????????# ""Y"" #????????????????? | | ??????????????# #????????????????? | | ??????????????# ##???????????????? | | ??????????????# #???????????????? | | ??????????????#!! #??????####??????? | | ???????????????!! ??????? #??????? | | ????????????????? ???????? #??????? | | ?###+#########?####+########## #??????? | | ?# ### #??????? | | ?# #??????? | | ?# #??????? | | ? #??????? | | ###+##### ^ ######s########??????? | | # # # @ s #??????????? | | # ! # """ # s #??????????? | | # # """ # #??????????? | | # # """ # """ #??????????? | | + # """ # """ #??????????? | | # # """ # """ #??????????? | | # # # #??????????? | | # #[ # #??????????? | | #####+### ###########??????????? | | ????????????????? | | ????????????????? | | ????????????????? | | ?????????????????? | | ############+### ?????????????????? | | ????????????? ? ?????????????????? | | ?????????????? #? ??????????????????? | | ????????????????? ??????????????????? | | ?????????????????? ???????????????????? | | ??????????????????? ???????????????????? | | ?????????????????????????????????????????? | | ?????????????????????????????????????????? | | ?????????????????????????????????????????? | | ?????????????????????????????????????????? | | ?????????????????????????????????????????? | | ?????????????????????????????????????????? | +----------------------------------------------------+ Best States ------------- Heat Dissipation 90 Energy Generation 35 Energy Capacity 375 Matter Stores 300 Matter Capacity 300 Sight Range 20 Robot Scan Range 15 Terrain Scan Range 16 Terrain Scan Density 110 Jamming Range 12 Additional Mass Support 9 Armor Coverage 600 Resistance: EM 15 Propulsion Shielding 66 Utility Shielding 33 Melee Speed Boost 20 Phase Shifting 10 Evasion (%) 62 Targeting Accuracy 5 Melee Accuracy 8 Target Analysis 6 Recoil Reduction 1 Force Boost 30 Defensive Hacking 10 Relay Coupler Types 1 Relay Coupler Value 30 Item Schematics ----------------- Com. Wheel | -9/Materials | Scanalyzed Visual Processing Unit | -9/Materials | Scanalyzed Weight Redist. System | -9/Materials | Scanalyzed Imp. Ion Engine | -9/Materials | Scanalyzed Arm. Wheel | -9/Materials | Scanalyzed Powered Hammer | -6/Factory | Scanalyzed Robot Schematics ------------------ None Fabricated ------------ Arm. Wheel | x2 | -5/Factory Repaired ---------- Nothing Alien Tech Used ----------------- None Achievements -------------- 10k Club Ambidextrous Assimilation Complete Batter Up Respectable Loadout Challenges ------------ None Game ------ Seed RegenerativeHypercooledUnit Manual? 0 Play Time 01:33:04 Cumulative 34.5 hours Start 2025.10.15 @ 20:19:01 End 2025.10.15 @ 21:53:09 Sessions 1 Manual Loads 0 Difficulty Rogue Special Mode None Game No. 137 Rogue 137 Adventurer 0 Explorer 0 Win Type - Total 0 Types 0/0/0/0/0/0/0/0/0/0 Lore% 11 Gallery% 32 Achievement% 30 Wizard Run 0 Options --------- Layout 1 ASCII 0 Keyboard 1 Movement Vi Keybinds 0 Fullscreen 1 Font 16/SmallcapsGlow Map View 55x38 Zoom Use 0% Tactical HUD 1 Map Filters NONE Filters NONE Steam 1 RUN: 5aeae062-aafd-4236-bfbe-00bd6d122b51